[Event "Titled Tuesday Blitz October 31 Early 2023"]
[White "Kosteniuk, Alexandra"]
[Black "Spichkin, Alexander"]
[WhiteFideId "4128125"]
[BlackFideId "4144074"]
[WhiteElo "2723"]
[BlackElo "2417"]
[Result "1-0"]
[Round "2"]
[TimeControl "180+1"]
[Date "2023.10.31"]
[WhiteClock "0:01:19"]
[BlackClock "0:00:06"]
[Board "72"]

1. Nf3 {[%clk 0:03:00]}  e6 {[%clk 0:02:57]} 2. g3 {[%clk 0:02:59]}  f5 {[%clk 0:02:57]} 3. d4 {[%clk 0:02:58]}  Nf6 {[%clk 0:02:57]} 4. Bg2 {[%clk 0:02:58]}  d6 {[%clk 0:02:58]} 5. c4 {[%clk 0:02:54]}  Be7 {[%clk 0:02:58]} 6. O-O {[%clk 0:02:53]}  O-O {[%clk 0:02:59]} 7. b3 {[%clk 0:02:54]}  a5 {[%clk 0:02:59]} 8. Bb2 {[%clk 0:02:52]}  Ne4 {[%clk 0:02:58]} 9. Nbd2 {[%clk 0:02:45]}  Nxd2 {[%clk 0:02:56]} 10. Qxd2 {[%clk 0:02:44]}  Qe8 {[%clk 0:02:55]} 11. c5 {[%clk 0:02:36]}  Qh5 {[%clk 0:02:48]} 12. cxd6 {[%clk 0:02:28]}  cxd6 {[%clk 0:02:48]} 13. Rac1 {[%clk 0:02:23]}  g5 {[%clk 0:02:17]} 14. Rc7 {[%clk 0:02:21]}  Nd7 {[%clk 0:02:10]} 15. Qe3 {[%clk 0:02:10]}  Qg6 {[%clk 0:02:02]} 16. Qc3 {[%clk 0:02:05]}  g4 {[%clk 0:01:52]} 17. Nd2 {[%clk 0:01:58]}  Bg5 {[%clk 0:01:50]} 18. Ba3 {[%clk 0:01:56]}  e5 {[%clk 0:01:19]} 19. Nc4 {[%clk 0:01:43]}  Bd8 {[%clk 0:00:43]} 20. Bxb7 {[%clk 0:01:42]}  Bxc7 {[%clk 0:00:29]} 21. Bxa8 {[%clk 0:01:42]}  e4 {[%clk 0:00:23]} 22. Bd5+ {[%clk 0:01:35]}  Kg7 {[%clk 0:00:19]} 23. Ne5 {[%clk 0:01:35]}  dxe5 {[%clk 0:00:19]} 24. Bxf8+ {[%clk 0:01:31]}  Kxf8 {[%clk 0:00:17]} 25. Qxc7 {[%clk 0:01:31]}  Qe8 {[%clk 0:00:18]} 26. Rc1 {[%clk 0:01:28]}  Ba6 {[%clk 0:00:16]} 27. Qd6+ {[%clk 0:01:28]}  Qe7 {[%clk 0:00:16]} 28. Qxa6 {[%clk 0:01:28]}  exd4 {[%clk 0:00:15]} 29. Qa8+ {[%clk 0:01:28]}  Kg7 {[%clk 0:00:15]} 30. Qg8+ {[%clk 0:01:28]}  Kh6 {[%clk 0:00:15]} 31. Rc6+ {[%clk 0:01:28]}  Nf6 {[%clk 0:00:16]} 32. Re6 {[%clk 0:01:21]}  Qxe6 {[%clk 0:00:07]} 33. Qxe6 {[%clk 0:01:21]}  Kg5 {[%clk 0:00:06]} 34. Bc4 {[%clk 0:01:19]} 1-0


[Site "https://www.chess.com"]

[Event "Titled Tuesday Blitz October 31 Early 2023"]
[White "Marcziter, Dmitrii"]
[Black "Hua, Lefong"]
[WhiteFideId "13900765"]
[BlackFideId "2602253"]
[WhiteElo "2388"]
[BlackElo "2719"]
[Result "0-1"]
[Round "2"]
[TimeControl "180+1"]
[Date "2023.10.31"]
[WhiteClock "0:00:27"]
[BlackClock "0:00:56"]
[Board "74"]

1. d4 {[%clk 0:03:00]}  Nf6 {[%clk 0:02:59]} 2. c4 {[%clk 0:03:00]}  c5 {[%clk 0:02:59]} 3. d5 {[%clk 0:03:00]}  e6 {[%clk 0:03:00]} 4. Nc3 {[%clk 0:03:00]}  exd5 {[%clk 0:03:00]} 5. cxd5 {[%clk 0:03:00]}  d6 {[%clk 0:03:01]} 6. Nf3 {[%clk 0:03:00]}  g6 {[%clk 0:03:01]} 7. Nd2 {[%clk 0:03:00]}  Nbd7 {[%clk 0:03:02]} 8. Nc4 {[%clk 0:03:00]}  Nb6 {[%clk 0:03:02]} 9. e4 {[%clk 0:02:58]}  Nxc4 {[%clk 0:02:59]} 10. Bxc4 {[%clk 0:02:58]}  Bg7 {[%clk 0:02:59]} 11. Bb5+ {[%clk 0:02:57]}  Bd7 {[%clk 0:03:00]} 12. Bxd7+ {[%clk 0:02:57]}  Qxd7 {[%clk 0:02:54]} 13. a4 {[%clk 0:02:56]}  O-O {[%clk 0:02:52]} 14. O-O {[%clk 0:02:56]}  Rfe8 {[%clk 0:02:50]} 15. Re1 {[%clk 0:02:54]}  b6 {[%clk 0:02:43]} 16. h3 {[%clk 0:02:52]}  a6 {[%clk 0:02:43]} 17. Qd3 {[%clk 0:02:45]}  Qc7 {[%clk 0:02:30]} 18. Bf4 {[%clk 0:02:42]}  Nd7 {[%clk 0:02:25]} 19. Rab1 {[%clk 0:02:34]}  Ne5 {[%clk 0:02:21]} 20. Qc2 {[%clk 0:02:34]}  c4 {[%clk 0:02:17]} 21. Bg3 {[%clk 0:02:30]}  Nd3 {[%clk 0:02:10]} 22. Red1 {[%clk 0:02:27]}  Qc5 {[%clk 0:02:09]} 23. Ne2 {[%clk 0:02:14]}  Rxe4 {[%clk 0:01:43]} 24. Nf4 {[%clk 0:02:08]}  Rxf4 {[%clk 0:01:34]} 25. Rxd3 {[%clk 0:02:08]}  cxd3 {[%clk 0:01:16]} 26. Qxc5 {[%clk 0:02:07]}  dxc5 {[%clk 0:01:17]} 27. Bxf4 {[%clk 0:02:08]}  Rd8 {[%clk 0:01:17]} 28. d6 {[%clk 0:02:07]}  Bf8 {[%clk 0:01:16]} 29. Rd1 {[%clk 0:01:59]}  c4 {[%clk 0:01:16]} 30. b3 {[%clk 0:01:59]}  b5 {[%clk 0:01:16]} 31. axb5 {[%clk 0:01:58]}  axb5 {[%clk 0:01:17]} 32. bxc4 {[%clk 0:01:49]}  bxc4 {[%clk 0:01:17]} 33. Rc1 {[%clk 0:01:49]}  Bxd6 {[%clk 0:01:17]} 34. Bd2 {[%clk 0:01:46]}  Rc8 {[%clk 0:01:13]} 35. Bc3 {[%clk 0:01:45]}  Bf4 {[%clk 0:01:12]} 36. Ra1 {[%clk 0:01:42]}  Rd8 {[%clk 0:01:05]} 37. g3 {[%clk 0:01:41]}  Bh6 {[%clk 0:00:59]} 38. Bf6 {[%clk 0:01:34]}  Rc8 {[%clk 0:00:56]} 39. Bc3 {[%clk 0:01:31]}  Bg7 {[%clk 0:00:57]} 40. Rc1 {[%clk 0:01:19]}  Bxc3 {[%clk 0:00:56]} 41. Rxc3 {[%clk 0:00:27]}  d2 {[%clk 0:00:56]} 0-1


[Site "https://www.chess.com"]

[Event "Titled Tuesday Blitz October 31 Early 2023"]
[White "NLLO777"]
[Black "Dmitrenko, Viktor"]
[BlackFideId "14110270"]
[WhiteElo "2711"]
[BlackElo "2366"]
[Result "1-0"]
[Round "2"]
[TimeControl "180+1"]
[Date "2023.10.31"]
[WhiteClock "0:01:01"]
[BlackClock "0:00:00"]
[Board "76"]

1. Nf3 {[%clk 0:03:00]}  c5 {[%clk 0:02:56]} 2. g3 {[%clk 0:03:00]}  Nc6 {[%clk 0:02:56]} 3. c4 {[%clk 0:03:01]}  g6 {[%clk 0:02:56]} 4. Bg2 {[%clk 0:03:00]}  e5 {[%clk 0:02:56]} 5. d3 {[%clk 0:03:00]}  Bg7 {[%clk 0:02:56]} 6. Nc3 {[%clk 0:02:58]}  Nge7 {[%clk 0:02:56]} 7. Nd2 {[%clk 0:02:59]}  O-O {[%clk 0:02:56]} 8. Nf1 {[%clk 0:02:59]}  d6 {[%clk 0:02:53]} 9. Ne3 {[%clk 0:03:00]}  Be6 {[%clk 0:02:53]} 10. O-O {[%clk 0:02:59]}  Qd7 {[%clk 0:02:52]} 11. Re1 {[%clk 0:02:56]}  Bh3 {[%clk 0:02:46]} 12. Bh1 {[%clk 0:02:56]}  f5 {[%clk 0:02:42]} 13. Ned5 {[%clk 0:02:56]}  f4 {[%clk 0:02:36]} 14. a3 {[%clk 0:02:46]}  h5 {[%clk 0:02:25]} 15. b4 {[%clk 0:02:44]}  h4 {[%clk 0:02:17]} 16. b5 {[%clk 0:02:28]}  fxg3 {[%clk 0:01:22]} 17. hxg3 {[%clk 0:02:17]}  hxg3 {[%clk 0:01:22]} 18. f3 {[%clk 0:02:13]}  Nd4 {[%clk 0:01:09]} 19. Bg5 {[%clk 0:02:05]}  Nxd5 {[%clk 0:00:29]} 20. Nxd5 {[%clk 0:02:05]}  Rae8 {[%clk 0:00:30]} 21. e3 {[%clk 0:01:53]}  Ne6 {[%clk 0:00:19]} 22. Bh4 {[%clk 0:01:52]}  e4 {[%clk 0:00:10]} 23. dxe4 {[%clk 0:01:52]}  Be5 {[%clk 0:00:05]} 24. f4 {[%clk 0:01:42]}  Bxa1 {[%clk 0:00:05]} 25. Qxa1 {[%clk 0:01:42]}  g5 {[%clk 0:00:04]} 26. Bxg3 {[%clk 0:01:36]}  gxf4 {[%clk 0:00:04]} 27. exf4 {[%clk 0:01:35]}  Rf7 {[%clk 0:00:02]} 28. Nf6+ {[%clk 0:01:31]}  Rxf6 {[%clk 0:00:01]} 29. Qxf6 {[%clk 0:01:32]}  Rf8 {[%clk 0:00:02]} 30. Qg6+ {[%clk 0:01:29]}  Ng7 {[%clk 0:00:03]} 31. f5 {[%clk 0:01:19]}  Rf7 {[%clk 0:00:01]} 32. Kh2 {[%clk 0:01:03]}  b6 {[%clk 0:00:01]} 33. Kxh3 {[%clk 0:01:03]}  Kf8 {[%clk 0:00:01]} 34. Qxd6+ {[%clk 0:01:00]}  Qxd6 {[%clk 0:00:00]} 35. Bxd6+ {[%clk 0:01:01]} 1-0


[Site "https://www.chess.com"]

[Event "Titled Tuesday Blitz October 31 Early 2023"]
[White "Ovezdurdyyeva, Jemal"]
[Black "Atakhan, Abtin"]
[WhiteFideId "14001888"]
[BlackFideId "22502203"]
[WhiteElo "2363"]
[BlackElo "2709"]
[Result "0-1"]
[Round "2"]
[TimeControl "180+1"]
[Date "2023.10.31"]
[WhiteClock "0:01:20"]
[BlackClock "0:01:23"]
[Board "77"]

1. e4 {[%clk 0:03:00]}  c6 {[%clk 0:03:00]} 2. d4 {[%clk 0:03:00]}  d5 {[%clk 0:03:01]} 3. Nd2 {[%clk 0:03:00]}  dxe4 {[%clk 0:03:01]} 4. Nxe4 {[%clk 0:03:01]}  Bf5 {[%clk 0:03:01]} 5. Ng3 {[%clk 0:03:02]}  Bg6 {[%clk 0:03:02]} 6. Nf3 {[%clk 0:03:02]}  Nd7 {[%clk 0:03:02]} 7. Bd3 {[%clk 0:03:02]}  Bxd3 {[%clk 0:03:00]} 8. Qxd3 {[%clk 0:03:02]}  e6 {[%clk 0:03:01]} 9. O-O {[%clk 0:03:02]}  Ngf6 {[%clk 0:03:01]} 10. c4 {[%clk 0:03:02]}  Be7 {[%clk 0:03:00]} 11. Bf4 {[%clk 0:03:00]}  O-O {[%clk 0:02:59]} 12. Rad1 {[%clk 0:02:58]}  a5 {[%clk 0:02:59]} 13. Ne5 {[%clk 0:02:46]}  a4 {[%clk 0:02:56]} 14. a3 {[%clk 0:02:44]}  Qa5 {[%clk 0:02:50]} 15. Nxd7 {[%clk 0:02:35]}  Nxd7 {[%clk 0:02:50]} 16. d5 {[%clk 0:02:35]}  Nc5 {[%clk 0:02:42]} 17. Qc2 {[%clk 0:02:24]}  cxd5 {[%clk 0:02:30]} 18. cxd5 {[%clk 0:02:23]}  exd5 {[%clk 0:02:26]} 19. Rxd5 {[%clk 0:02:22]}  Rac8 {[%clk 0:02:07]} 20. Qf5 {[%clk 0:02:17]}  Qa6 {[%clk 0:01:54]} 21. Re1 {[%clk 0:02:09]}  Ne6 {[%clk 0:01:49]} 22. Bd2 {[%clk 0:01:45]}  Bf6 {[%clk 0:01:43]} 23. Ra5 {[%clk 0:01:29]}  Qc4 {[%clk 0:01:24]} 24. Bb4 {[%clk 0:01:28]}  Rfe8 {[%clk 0:01:24]} 25. Rxa4 {[%clk 0:01:28]}  Nd4 {[%clk 0:01:23]} 26. Rxe8+ {[%clk 0:01:23]}  Rxe8 {[%clk 0:01:24]} 27. h3 {[%clk 0:01:20]}  Nxf5 {[%clk 0:01:23]} 0-1


[Site "https://www.chess.com"]

[Event "Titled Tuesday Blitz October 31 Early 2023"]
[White "Szpar, Milosz"]
[Black "chessculator16"]
[WhiteFideId "1184989"]
[WhiteElo "2704"]
[BlackElo "2328"]
[Result "1-0"]
[Round "2"]
[TimeControl "180+1"]
[Date "2023.10.31"]
[WhiteClock "0:00:13"]
[BlackClock "0:01:04"]
[Board "78"]

1. Nf3 {[%clk 0:03:00]}  d5 {[%clk 0:02:59]} 2. e3 {[%clk 0:02:58]}  c6 {[%clk 0:02:59]} 3. c4 {[%clk 0:02:58]}  Nf6 {[%clk 0:02:59]} 4. Nc3 {[%clk 0:02:55]}  Bg4 {[%clk 0:03:00]} 5. cxd5 {[%clk 0:02:53]}  cxd5 {[%clk 0:03:00]} 6. Qb3 {[%clk 0:02:53]}  Bxf3 {[%clk 0:02:52]} 7. Qxb7 {[%clk 0:02:31]}  Bxg2 {[%clk 0:02:27]} 8. Bxg2 {[%clk 0:02:12]}  Nbd7 {[%clk 0:02:24]} 9. Nxd5 {[%clk 0:02:04]}  Nxd5 {[%clk 0:02:22]} 10. Qxd5 {[%clk 0:01:56]}  Rc8 {[%clk 0:02:19]} 11. O-O {[%clk 0:01:52]}  e6 {[%clk 0:02:19]} 12. Qb5 {[%clk 0:01:48]}  Bd6 {[%clk 0:02:18]} 13. f4 {[%clk 0:01:37]}  O-O {[%clk 0:02:17]} 14. b3 {[%clk 0:01:36]}  e5 {[%clk 0:02:13]} 15. f5 {[%clk 0:01:32]}  e4 {[%clk 0:02:11]} 16. Qd5 {[%clk 0:00:54]}  Be5 {[%clk 0:02:10]} 17. Ba3 {[%clk 0:00:53]}  Qh4 {[%clk 0:02:06]} 18. h3 {[%clk 0:00:45]}  Qg3 {[%clk 0:02:01]} 19. Qxe4 {[%clk 0:00:33]}  Rfe8 {[%clk 0:01:54]} 20. Qf3 {[%clk 0:00:26]}  Qxf3 {[%clk 0:01:38]} 21. Bxf3 {[%clk 0:00:25]}  Bxa1 {[%clk 0:01:38]} 22. Rxa1 {[%clk 0:00:26]}  Ne5 {[%clk 0:01:37]} 23. Be4 {[%clk 0:00:22]}  Rcd8 {[%clk 0:01:34]} 24. Bb4 {[%clk 0:00:15]}  g6 {[%clk 0:01:32]} 25. Bc3 {[%clk 0:00:13]}  gxf5 {[%clk 0:01:29]} 26. Bxf5 {[%clk 0:00:14]}  Ng6 {[%clk 0:01:29]} 27. Kf2 {[%clk 0:00:13]}  Rd5 {[%clk 0:01:29]} 28. e4 {[%clk 0:00:13]}  Rc5 {[%clk 0:01:26]} 29. Rg1 {[%clk 0:00:13]}  Rd8 {[%clk 0:01:22]} 30. h4 {[%clk 0:00:12]}  Kf8 {[%clk 0:01:20]} 31. Bb4 {[%clk 0:00:11]}  Rc8 {[%clk 0:01:15]} 32. d4 {[%clk 0:00:11]}  Ke8 {[%clk 0:01:12]} 33. Bxc5 {[%clk 0:00:11]}  Rc7 {[%clk 0:01:10]} 34. h5 {[%clk 0:00:12]}  Ne7 {[%clk 0:01:09]} 35. Bxe7 {[%clk 0:00:11]}  Kxe7 {[%clk 0:01:09]} 36. Kf3 {[%clk 0:00:11]}  Rc3+ {[%clk 0:01:09]} 37. Kf4 {[%clk 0:00:12]}  Rc2 {[%clk 0:01:10]} 38. d5 {[%clk 0:00:12]}  Rf2+ {[%clk 0:01:10]} 39. Ke3 {[%clk 0:00:13]}  Rxa2 {[%clk 0:01:09]} 40. Rd1 {[%clk 0:00:12]}  Rb2 {[%clk 0:01:07]} 41. d6+ {[%clk 0:00:12]}  Kd8 {[%clk 0:01:08]} 42. Rc1 {[%clk 0:00:12]}  Rxb3+ {[%clk 0:01:09]} 43. Kf4 {[%clk 0:00:13]}  Rb8 {[%clk 0:01:04]} 44. Rg1 {[%clk 0:00:13]} 1-0


[Site "https://www.chess.com"]

[Event "Titled Tuesday Blitz October 31 Early 2023"]
[White "Luxama, Jacques Muller"]
[Black "Goldin, Alexander"]
[WhiteFideId "11900113"]
[BlackFideId "2019540"]
[WhiteElo "2318"]
[BlackElo "2690"]
[Result "1/2-1/2"]
[Round "2"]
[TimeControl "180+1"]
[Date "2023.10.31"]
[WhiteClock "0:00:03"]
[BlackClock "0:00:14"]
[Board "82"]

1. e4 {[%clk 0:03:00]}  e5 {[%clk 0:02:59]} 2. Nf3 {[%clk 0:03:00]}  Nc6 {[%clk 0:02:59]} 3. Bc4 {[%clk 0:03:00]}  Be7 {[%clk 0:02:59]} 4. O-O {[%clk 0:02:59]}  Nf6 {[%clk 0:02:59]} 5. d3 {[%clk 0:02:58]}  O-O {[%clk 0:02:58]} 6. Nc3 {[%clk 0:02:57]}  d6 {[%clk 0:02:57]} 7. a4 {[%clk 0:02:55]}  a5 {[%clk 0:02:56]} 8. h3 {[%clk 0:02:55]}  Be6 {[%clk 0:02:55]} 9. Bg5 {[%clk 0:02:50]}  h6 {[%clk 0:02:41]} 10. Bxf6 {[%clk 0:02:49]}  Bxf6 {[%clk 0:02:41]} 11. Nd5 {[%clk 0:02:49]}  g6 {[%clk 0:02:27]} 12. c3 {[%clk 0:02:44]}  Bg7 {[%clk 0:02:27]} 13. Qb3 {[%clk 0:02:42]}  Rb8 {[%clk 0:01:57]} 14. Rad1 {[%clk 0:02:37]}  Qd7 {[%clk 0:01:55]} 15. Kh2 {[%clk 0:02:26]}  Kh7 {[%clk 0:01:54]} 16. d4 {[%clk 0:02:11]}  exd4 {[%clk 0:01:51]} 17. Nxd4 {[%clk 0:02:10]}  Bxd5 {[%clk 0:01:47]} 18. Bxd5 {[%clk 0:02:01]}  Bxd4 {[%clk 0:01:02]} 19. cxd4 {[%clk 0:01:57]}  Nb4 {[%clk 0:01:02]} 20. e5 {[%clk 0:01:41]}  dxe5 {[%clk 0:00:47]} 21. dxe5 {[%clk 0:01:36]}  Qe7 {[%clk 0:00:42]} 22. f4 {[%clk 0:01:28]}  c6 {[%clk 0:00:41]} 23. Be4 {[%clk 0:01:26]}  Rbd8 {[%clk 0:00:40]} 24. Kh1 {[%clk 0:01:07]}  Kg7 {[%clk 0:00:38]} 25. Qc3 {[%clk 0:01:03]}  Kg8 {[%clk 0:00:36]} 26. Qg3 {[%clk 0:00:51]}  Rxd1 {[%clk 0:00:27]} 27. Rxd1 {[%clk 0:00:51]}  Rd8 {[%clk 0:00:26]} 28. Rxd8+ {[%clk 0:00:42]}  Qxd8 {[%clk 0:00:27]} 29. e6 {[%clk 0:00:43]}  Qf6 {[%clk 0:00:26]} 30. exf7+ {[%clk 0:00:41]}  Kxf7 {[%clk 0:00:26]} 31. b3 {[%clk 0:00:33]}  Kg7 {[%clk 0:00:26]} 32. f5 {[%clk 0:00:31]}  g5 {[%clk 0:00:25]} 33. Qc7+ {[%clk 0:00:30]}  Kf8 {[%clk 0:00:23]} 34. Qb8+ {[%clk 0:00:28]}  Ke7 {[%clk 0:00:19]} 35. Qxb7+ {[%clk 0:00:28]}  Kd6 {[%clk 0:00:20]} 36. Qb8+ {[%clk 0:00:11]}  Kc5 {[%clk 0:00:20]} 37. Qa7+ {[%clk 0:00:07]}  Kd6 {[%clk 0:00:20]} 38. Qxa5 {[%clk 0:00:06]}  Qa1+ {[%clk 0:00:20]} 39. Kh2 {[%clk 0:00:06]}  Qd4 {[%clk 0:00:21]} 40. Bf3 {[%clk 0:00:05]}  Qf4+ {[%clk 0:00:20]} 41. Kg1 {[%clk 0:00:04]}  Qe3+ {[%clk 0:00:18]} 42. Kh2 {[%clk 0:00:04]}  Nd3 {[%clk 0:00:18]} 43. Qd8+ {[%clk 0:00:03]}  Kc5 {[%clk 0:00:18]} 44. Qf8+ {[%clk 0:00:03]}  Kb6 {[%clk 0:00:17]} 45. Qb8+ {[%clk 0:00:03]}  Ka5 {[%clk 0:00:16]} 46. Qa8+ {[%clk 0:00:03]}  Kb4 {[%clk 0:00:16]} 47. Qxc6 {[%clk 0:00:03]}  Qe5+ {[%clk 0:00:14]} 48. Kg1 {[%clk 0:00:02]}  Qe1+ {[%clk 0:00:14]} 49. Kh2 {[%clk 0:00:02]}  Qe5+ {[%clk 0:00:14]} 50. Kg1 {[%clk 0:00:02]}  Qd4+ {[%clk 0:00:14]} 51. Kh2 {[%clk 0:00:03]}  Qe5+ {[%clk 0:00:14]} 1/2-1/2


[Site "https://www.chess.com"]

[Event "Titled Tuesday Blitz October 31 Early 2023"]
[White "Guzman Moneo, Alberto"]
[Black "BashirovKemal"]
[WhiteFideId "2209616"]
[WhiteElo "2292"]
[BlackElo "2687"]
[Result "1-0"]
[Round "2"]
[TimeControl "180+1"]
[Date "2023.10.31"]
[WhiteClock "0:00:04"]
[BlackClock "0:00:02"]
[Board "84"]

1. e4 {[%clk 0:02:53]}  c5 {[%clk 0:02:59]} 2. Nc3 {[%clk 0:02:52]}  d6 {[%clk 0:03:00]} 3. f4 {[%clk 0:02:52]}  Nc6 {[%clk 0:03:00]} 4. Nf3 {[%clk 0:02:53]}  g6 {[%clk 0:02:59]} 5. Bb5 {[%clk 0:02:53]}  Bg7 {[%clk 0:02:59]} 6. O-O {[%clk 0:02:52]}  e6 {[%clk 0:02:58]} 7. d3 {[%clk 0:02:52]}  Ne7 {[%clk 0:02:58]} 8. Qe1 {[%clk 0:02:51]}  O-O {[%clk 0:02:58]} 9. Qh4 {[%clk 0:02:48]}  Nd4 {[%clk 0:02:55]} 10. Nxd4 {[%clk 0:02:46]}  Bxd4+ {[%clk 0:02:51]} 11. Kh1 {[%clk 0:02:45]}  a6 {[%clk 0:02:51]} 12. Ba4 {[%clk 0:02:43]}  b5 {[%clk 0:02:45]} 13. Bb3 {[%clk 0:02:43]}  Bb7 {[%clk 0:02:42]} 14. f5 {[%clk 0:02:38]}  exf5 {[%clk 0:02:28]} 15. Bg5 {[%clk 0:02:31]}  Re8 {[%clk 0:02:17]} 16. exf5 {[%clk 0:02:28]}  d5 {[%clk 0:01:58]} 17. f6 {[%clk 0:01:50]}  Qd6 {[%clk 0:01:22]} 18. Qh6 {[%clk 0:01:27]}  Nf5 {[%clk 0:01:22]} 19. Rxf5 {[%clk 0:01:27]}  Qf8 {[%clk 0:01:22]} 20. Qxf8+ {[%clk 0:01:20]}  Kxf8 {[%clk 0:01:23]} 21. Rxd5 {[%clk 0:01:10]}  Bxd5 {[%clk 0:01:21]} 22. Bxd5 {[%clk 0:01:01]}  Rad8 {[%clk 0:01:19]} 23. Be4 {[%clk 0:00:52]}  Re5 {[%clk 0:01:16]} 24. h4 {[%clk 0:00:49]}  b4 {[%clk 0:01:11]} 25. Na4 {[%clk 0:00:44]}  c4 {[%clk 0:01:08]} 26. Re1 {[%clk 0:00:37]}  Rde8 {[%clk 0:01:02]} 27. g3 {[%clk 0:00:19]}  Bf2 {[%clk 0:00:58]} 28. Rf1 {[%clk 0:00:13]}  Bd4 {[%clk 0:00:52]} 29. Nb6 {[%clk 0:00:09]}  Bxb6 {[%clk 0:00:50]} 30. Kg2 {[%clk 0:00:09]}  cxd3 {[%clk 0:00:50]} 31. cxd3 {[%clk 0:00:10]}  Rc8 {[%clk 0:00:50]} 32. Kf3 {[%clk 0:00:09]}  Rc2 {[%clk 0:00:47]} 33. d4 {[%clk 0:00:09]}  Bxd4 {[%clk 0:00:44]} 34. Bxc2 {[%clk 0:00:07]}  Bxb2 {[%clk 0:00:41]} 35. Bb3 {[%clk 0:00:07]}  Rc5 {[%clk 0:00:36]} 36. Rd1 {[%clk 0:00:07]}  Rc3+ {[%clk 0:00:35]} 37. Kg2 {[%clk 0:00:07]}  Rc8 {[%clk 0:00:34]} 38. Rd7 {[%clk 0:00:07]}  Ke8 {[%clk 0:00:26]} 39. Rxf7 {[%clk 0:00:07]}  h6 {[%clk 0:00:26]} 40. Re7+ {[%clk 0:00:07]}  Kd8 {[%clk 0:00:26]} 41. Bxh6 {[%clk 0:00:07]}  Bxf6 {[%clk 0:00:26]} 42. Rf7 {[%clk 0:00:05]}  Be7 {[%clk 0:00:25]} 43. Bg5 {[%clk 0:00:05]}  Bxg5 {[%clk 0:00:23]} 44. hxg5 {[%clk 0:00:06]}  Rc3 {[%clk 0:00:23]} 45. Rf6 {[%clk 0:00:07]}  a5 {[%clk 0:00:22]} 46. Rxg6 {[%clk 0:00:07]}  Rd3 {[%clk 0:00:20]} 47. Ba4 {[%clk 0:00:08]}  Ra3 {[%clk 0:00:19]} 48. Bb3 {[%clk 0:00:07]}  a4 {[%clk 0:00:19]} 49. Bf7 {[%clk 0:00:07]}  Ke7 {[%clk 0:00:15]} 50. Bg8 {[%clk 0:00:07]}  Kf8 {[%clk 0:00:10]} 51. Bd5 {[%clk 0:00:06]}  Rd3 {[%clk 0:00:09]} 52. Rf6+ {[%clk 0:00:06]}  Ke7 {[%clk 0:00:09]} 53. Bc6 {[%clk 0:00:07]}  Rd2+ {[%clk 0:00:06]} 54. Kh3 {[%clk 0:00:07]}  Rxa2 {[%clk 0:00:07]} 55. Rf4 {[%clk 0:00:06]}  b3 {[%clk 0:00:06]} 56. Bxa4 {[%clk 0:00:05]}  b2 {[%clk 0:00:06]} 57. Bc2 {[%clk 0:00:05]}  Ra1 {[%clk 0:00:05]} 58. Rb4 {[%clk 0:00:04]}  Rh1+ {[%clk 0:00:04]} 59. Kg2 {[%clk 0:00:05]}  Rh5 {[%clk 0:00:03]} 60. Rxb2 {[%clk 0:00:04]}  Rxg5 {[%clk 0:00:03]} 61. Rb4 {[%clk 0:00:04]}  Re5 {[%clk 0:00:02]} 62. Re4 {[%clk 0:00:04]} 1-0


[Site "https://www.chess.com"]

[Event "Titled Tuesday Blitz October 31 Early 2023"]
[White "Sadykov, Ramil"]
[Black "ChessDojo"]
[WhiteFideId "24113590"]
[WhiteElo "2676"]
[BlackElo "2224"]
[Result "1-0"]
[Round "2"]
[TimeControl "180+1"]
[Date "2023.10.31"]
[WhiteClock "0:01:22"]
[BlackClock "0:01:42"]
[Board "88"]

1. d4 {[%clk 0:03:00]}  d5 {[%clk 0:02:57]} 2. Bf4 {[%clk 0:03:00]}  Nf6 {[%clk 0:02:57]} 3. Nc3 {[%clk 0:03:00]}  g6 {[%clk 0:02:56]} 4. Qd2 {[%clk 0:03:00]}  Bg7 {[%clk 0:02:55]} 5. Bh6 {[%clk 0:03:00]}  O-O {[%clk 0:02:54]} 6. Bxg7 {[%clk 0:03:00]}  Kxg7 {[%clk 0:02:53]} 7. O-O-O {[%clk 0:02:58]}  c5 {[%clk 0:02:50]} 8. e3 {[%clk 0:02:47]}  Nc6 {[%clk 0:02:46]} 9. Bb5 {[%clk 0:02:36]}  Bf5 {[%clk 0:02:45]} 10. dxc5 {[%clk 0:02:29]}  a6 {[%clk 0:02:33]} 11. Bxc6 {[%clk 0:02:24]}  bxc6 {[%clk 0:02:33]} 12. Nge2 {[%clk 0:02:21]}  Rb8 {[%clk 0:02:34]} 13. Nd4 {[%clk 0:02:18]}  Ne4 {[%clk 0:02:30]} 14. Nxe4 {[%clk 0:02:08]}  Bxe4 {[%clk 0:02:27]} 15. Nxc6 {[%clk 0:01:59]}  Qc7 {[%clk 0:02:27]} 16. Nxb8 {[%clk 0:01:57]}  Rxb8 {[%clk 0:02:28]} 17. f3 {[%clk 0:01:56]}  Bf5 {[%clk 0:02:16]} 18. Qxd5 {[%clk 0:01:53]}  Qa5 {[%clk 0:02:10]} 19. Qe5+ {[%clk 0:01:52]}  f6 {[%clk 0:02:09]} 20. Qxb8 {[%clk 0:01:46]}  Qxc5 {[%clk 0:02:07]} 21. e4 {[%clk 0:01:43]}  Be6 {[%clk 0:02:05]} 22. Rd3 {[%clk 0:01:30]}  Qc4 {[%clk 0:01:55]} 23. Qb3 {[%clk 0:01:23]}  Qc6 {[%clk 0:01:42]} 24. Qa3 {[%clk 0:01:22]} 1-0


[Site "https://www.chess.com"]

[Event "Titled Tuesday Blitz October 31 Early 2023"]
[White "DonCiao"]
[Black "Yen, William"]
[BlackFideId "30932025"]
[WhiteElo "2139"]
[BlackElo "2667"]
[Result "0-1"]
[Round "2"]
[TimeControl "180+1"]
[Date "2023.10.31"]
[WhiteClock "0:00:00"]
[BlackClock "0:00:19"]
[Board "92"]

1. c4 {[%clk 0:03:00]}  e5 {[%clk 0:02:42]} 2. g3 {[%clk 0:02:59]}  Nc6 {[%clk 0:02:42]} 3. Nc3 {[%clk 0:02:57]}  Bc5 {[%clk 0:02:42]} 4. Bg2 {[%clk 0:02:56]}  d6 {[%clk 0:02:40]} 5. e3 {[%clk 0:02:56]}  a6 {[%clk 0:02:39]} 6. Nge2 {[%clk 0:02:55]}  Ba7 {[%clk 0:02:39]} 7. d4 {[%clk 0:02:48]}  h5 {[%clk 0:02:35]} 8. b4 {[%clk 0:02:13]}  h4 {[%clk 0:02:24]} 9. b5 {[%clk 0:02:12]}  axb5 {[%clk 0:02:21]} 10. cxb5 {[%clk 0:02:11]}  Nce7 {[%clk 0:01:44]} 11. dxe5 {[%clk 0:02:10]}  dxe5 {[%clk 0:01:45]} 12. Qxd8+ {[%clk 0:02:09]}  Kxd8 {[%clk 0:01:46]} 13. Bb2 {[%clk 0:01:59]}  hxg3 {[%clk 0:01:43]} 14. hxg3 {[%clk 0:01:58]}  Rxh1+ {[%clk 0:01:44]} 15. Bxh1 {[%clk 0:01:58]}  Nf6 {[%clk 0:01:40]} 16. O-O-O+ {[%clk 0:01:57]}  Ke8 {[%clk 0:01:38]} 17. Ne4 {[%clk 0:01:39]}  Nxe4 {[%clk 0:01:31]} 18. Bxe4 {[%clk 0:01:38]}  f6 {[%clk 0:01:32]} 19. Nc3 {[%clk 0:01:30]}  Bc5 {[%clk 0:01:31]} 20. Kb1 {[%clk 0:01:19]}  Ra7 {[%clk 0:01:23]} 21. Rd3 {[%clk 0:00:55]}  b6 {[%clk 0:01:20]} 22. f4 {[%clk 0:00:52]}  f5 {[%clk 0:01:07]} 23. Bc6+ {[%clk 0:00:34]}  Nxc6 {[%clk 0:01:06]} 24. bxc6 {[%clk 0:00:35]}  e4 {[%clk 0:01:07]} 25. Rd5 {[%clk 0:00:28]}  Bxe3 {[%clk 0:01:03]} 26. Re5+ {[%clk 0:00:27]}  Kf7 {[%clk 0:01:01]} 27. Nb5 {[%clk 0:00:27]}  Ra5 {[%clk 0:00:33]} 28. Nxc7 {[%clk 0:00:23]}  Rxe5 {[%clk 0:00:34]} 29. Bxe5 {[%clk 0:00:20]}  Bf2 {[%clk 0:00:35]} 30. Nd5 {[%clk 0:00:15]}  Be6 {[%clk 0:00:32]} 31. Nxb6 {[%clk 0:00:14]}  Bxb6 {[%clk 0:00:31]} 32. c7 {[%clk 0:00:09]}  Bf2 {[%clk 0:00:27]} 33. a4 {[%clk 0:00:08]}  Bxg3 {[%clk 0:00:24]} 34. a5 {[%clk 0:00:07]}  Bc8 {[%clk 0:00:21]} 35. Kc2 {[%clk 0:00:00]}  g5 {[%clk 0:00:19]} 0-1


[Site "https://www.chess.com"]